Cogmind - Beta 10.2 @@@ ROGUE MODE // 2021.10.11 @ 16:32:21 Player: zapruda Result: Destroyed by D-53 Grenadier with Mini Grenade Launcher Performance ------------- Evolutions (0) 0 Regions Visited (2) 400 Robots Destroyed (18) 90 Value Destroyed (409) 409 Prototype IDs (0) 0 Alien Tech Used (0) 0 Bonus (0) 0 TOTAL SCORE: 899 Bonus ------- None Cogmind --------- Core Integrity 0/250 Matter 111/300 Energy 235/250 System Corruption 0% Temperature Cool (0) Movement Treading (160) Location -10/Mines Parts ------- > --- POWER (1) -------- Ion Engine > --- PROPULSION (2) --- Improved Treads Improved Treads > --- UTILITY (2) ------ High-capacity Storage Unit Improved Terrain Scanner > --- WEAPON (2) ------- Heavy Assault Rifle Mini Grenade Launcher > --- INVENTORY (12) --- Light Nuclear Core Hacking Suite Hacking Suite EM Shotgun Heavy Assault Rifle Heavy Assault Rifle Heavy Assault Rifle Peak State ------------ > --- POWER ------------ Ion Engine > --- PROPULSION ------- Improved Treads Improved Treads > --- UTILITY ---------- High-capacity Storage Unit Terrain Scan Processor > --- WEAPON ----------- Heavy Assault Rifle Heavy Assault Rifle > --- INVENTORY -------- Ion Engine Ion Engine Light Nuclear Core Improved Treads Improved Treads Weight Redist. System Transport Network Coupler Hacking Suite Hacking Suite Heavy Assault Rifle Heavy Assault Rifle Datajack [Rating: 14] Favorites ----------- Power Ion Engine Engine Ion Engine Propulsion Wheel Treads Improved Treads Leg Aluminum Leg Wheel Wheel Utility High-capacity Storage Unit Device Improved Terrain Scanner Storage High-capacity Storage Unit Processor Terrain Scan Processor Protection Light Armor Plating Weapon Heavy Assault Rifle Energy Gun Medium Laser Ballistic Gun Heavy Assault Rifle Launcher Mini Grenade Launcher Build | -11 -10 -10 ------- Run | Scr Mat Min Slots Evolved . | . . . Power . | . . . Propulsion . | . . . Utility . | . . . Weapon . | . . . Parts Attached 21 | . 15 6 Power 3 | . 2 1 Engine 3 | . 2 1 Core . | . . . Reactor . | . . . Propulsion 7 | . 5 2 Treads 4 | . 2 2 Leg . | . . . Wheel 3 | . 3 . Hover . | . . . Flight . | . . . Utility 5 | . 4 1 Device 1 | . . 1 Storage 1 | . 1 . Processor 1 | . 1 . Hackware . | . . . Protection 2 | . 2 . Artifact . | . . . Weapon 6 | . 4 2 Energy Gun . | . . . Energy Cannon . | . . . Ballistic Gun 4 | . 3 1 Ballistic Cannon . | . . . Launcher 2 | . 1 1 Special Weapon . | . . . Impact Weapon . | . . . Slashing Weapon . | . . . Piercing Weapon . | . . . Special Melee Weapon . | . . . Unidentified Prototypes . | . . . Parts Lost 8 | . 5 3 Power 1 | . . 1 Propulsion 3 | . 2 1 Utility 2 | . 1 1 Weapon 2 | . 2 . Highest Loss Streak 3 | . 3 2 Average Slot Usage (%) 96 | . 96 98 Engine 14 | . 14 14 Treads 12 | . 10 28 Wheel 14 | . 16 . Device 1 | . . 7 Storage 14 | . 14 14 Processor 3 | . 4 . Protection 7 | . 7 5 Energy Gun 4 | . 5 . Ballistic Gun 21 | . 21 21 Launcher 1 | . . 6 Naked Turns . | . . . Heaviest Build 46 | 13 46 44 Greatest Support 46 | 20 46 46 Greatest Overweight (x) 4 | . 4 . Average Overweight (x) . | . . . Largest Inventory Capacity 14 | 6 14 12 Average Capacity 11 | 6 11 12 Most Carried 12 | 6 12 11 Average Carried 8 | 6 7 8 Final Capacity 12 | 6 12 12 Final Carried 11 | 6 11 7 Class Distribution -------------------- 100% | Mutant Dominant Class ---------------- Mutant | -10/Materials Mutant | -10/Mines Resources | -11 -10 -10 ----------- Run | Scr Mat Min Matter Collected 612 | 200 392 20 Remotely . | . . . Salvage Created 656 | . 597 59 Parts 45 | . 45 . Haulers Intercepted 1 | . 1 . Recyclers Shooed 1 | . . 1 Parts Field Recycled . | . . . Retrieved Matter . | . . . Parts Self-Destructed . | . . . Prevented . | . . . Kills | -11 -10 -10 ------- Run | Scr Mat Min Combat Hostiles Destroyed 22 | . 10 12 Guns 13 | . 10 3 AOE 9 | . . 9 Classes Destroyed 6 | . 5 1 Worker 4 | . 4 . Builder 1 | . 1 . Hauler 1 | . 1 . Operator 2 | . 2 . Grunt 10 | . 10 . Assembled 12 | . . 12 Best Kill Streak 12 | . 6 12 Combat Bots Only 12 | . 5 12 Max Kills in Single Turn 3 | . 1 3 Gunslinging . | . . . Exploded 3 | . . 3 Melee . | . . . Uniques/NPCs Destroyed . | . . . Combat | -11 -10 -10 -------- Run | Scr Mat Min Damage Taken 1579 | . 631 948 Core 263 | . 68 195 Absorbed by Shields . | . . . Core Remaining (%) 100 | 100 . . Volleys Fired 88 | . 65 23 Largest 2 | . 2 2 Hottest 70 | . 70 53 Shots Fired 156 | . 122 34 Gun 150 | . 122 28 Cannon . | . . . Launcher 6 | . . 6 Special . | . . . Kinetic 123 | . 95 28 Thermal 27 | . 27 . Explosive 6 | . . 6 Electromagnetic . | . . . Robot Hit Streak 11 | . 11 5 Robot Miss Streak 4 | . 4 3 Penetration Max . | . . . Secondary Targets 2 | . 2 . Max Gunslinging Chain 1 | . 1 . Shots Hit Robots 100 | . 82 18 Core Hits 57 | . 31 26 Critical Hits . | . . . Critical Kills . | . . . Critical Parts Destroyed . | . . . Melee Attacks . | . . . Impact . | . . . Slashing . | . . . Piercing . | . . . Sneak Attacks . | . . . Combat Hostiles . | . . . Follow-up Attacks . | . . . Damage Inflicted 1995 | . 1066 929 Guns 1341 | . 1066 275 Cannons . | . . . Explosions 654 | . . 654 Melee . | . . . Ramming . | . . . Kinetic 1109 | . 834 275 Thermal 232 | . 232 . Explosive 654 | . . 654 Electromagnetic . | . . . Impact . | . . . Slashing . | . . . Piercing . | . . . Highest Corruption . | . . . Average Corruption . | . . . Corruption Purged . | . . . Overload Shots . | . . . Overflow Damage . | . . . Projectiles . | . . . Explosions . | . . . Melee . | . . . Knockbacks . | . . . Impact . | . . . Kinetic . | . . . Secondary . | . . . Self-Inflicted Damage 54 | . . 54 Shots 2 | . . 2 Rammed 1 | . 1 . Targets Rammed 1 | . 1 . Kicked . | . . . Crushed . | . . . Highest Temperature 194 | . 194 . Average Temperature 80 | . 80 . Received Heat Transfer 306 | . 306 . Siege Activations . | . . . Robots Corrupted . | . . . Combat Hostiles . | . . . Parts Fried . | . . . Impact Corruptions . | . . . Robots Melted . | . . . Combat Hostiles . | . . . Parts Melted . | . . . Heat Transferred 703 | . 703 . Parts Sabotaged . | . . . Parts Stolen . | . . . Parts Stripped . | . . . Power Chain Reactions . | . . . Missiles Intercepted . | . . . Alert | -11 -10 -10 ------- Run | Scr Mat Min Peak Influence 322 | . 322 72 Initial 57 | . . 57 Average 103 | . 112 55 Maximum Alert Level 1 | . 1 . Low Security (%) 93 | 100 91 100 Level 1 6 | . 8 . Level 2 . | . . . Level 3 . | . . . Level 4 . | . . . Level 5 . | . . . High Security . | . . . Max Security . | . . . Squads Dispatched 4 | . 4 . Investigation 1 | . 1 . Extermination . | . . . Reinforcement 3 | . 3 . Assault . | . . . Garrison . | . . . Intercept . | . . . Construction Impeded . | . . . Haulers Reinforced . | . . . Stealth | -11 -10 -10 --------- Run | Scr Mat Min Distress Signals . | . . . Communications Jammed . | . . . Distress Signals . | . . . Times Spotted 45 | . 25 20 Peak Tracking Total 13 | . 5 13 Tactical Retreats 6 | . 4 2 Traps | -11 -10 -10 ------- Run | Scr Mat Min Traps Triggered 3 | . 3 . Indirectly . | . . . Trap Hack Attempts . | . . . Triggered . | . . . Disarmed . | . . . Reprogrammed . | . . . Reused . | . . . Traps Extracted . | . . . Installed . | . . . Triggered . | . . . Machines | -11 -10 -10 ---------- Run | Scr Mat Min Machines Disabled . | . . . Max in Single Turn . | . . . Machines Sabotaged . | . . . Garrisons Compromised . | . . . Overloaded Fab Kills . | . . . Fab Network Shutdowns . | . . . Hacking | -11 -10 -10 --------- Run | Scr Mat Min Machines Accessed . | . . . Terminals . | . . . Fabricators . | . . . Repair Stations . | . . . Recycling Units . | . . . Scanalyzers . | . . . Garrison Access . | . . . Total Hacks . | . . . Successful . | . . . Failed . | . . . Catastrophic . | . . . Database Lockouts . | . . . Manual . | . . . Terminals . | . . . Fabricators . | . . . Repair Stations . | . . . Recycling Units . | . . . Scanalyzers . | . . . Garrison Access . | . . . Terminal Hacks . | . . . Fabricator Hacks . | . . . Repair Station Hacks . | . . . Recycling Unit Hacks . | . . . Scanalyzer . | . . . Garrison Access Hacks . | . . . Unauthorized Hacks . | . . . Terminals . | . . . Fabricators . | . . . Repair Stations . | . . . Recycling Units . | . . . Scanalyzers . | . . . Garrison Access . | . . . Data Cores Recovered . | . . . Used . | . . . Hacking Detections . | . . . Full Trace Events . | . . . Feedback Events . | . . . Feedback Blocked . | . . . Robot Schematics Acquired . | . . . Robots Built . | . . . Matter . | . . . Time . | . . . Total Robot Build Rating . | . . . Part Schematics Acquired . | . . . Parts Built . | . . . Matter . | . . . Time . | . . . Total Part Build Rating . | . . . Parts Repaired . | . . . Time . | . . . Parts Recycled . | . . . Recycled Matter . | . . . Retrieved Matter . | . . . Retrieved Components . | . . . Parts Scanalyzed . | . . . Part Schematics Acquired . | . . . Parts Damaged . | . . . Bothacking | -11 -10 -10 ------------ Run | Scr Mat Min Used RIF Installer . | . . . Robots Hacked . | . . . Non-combat . | . . . Combat . | . . . Robot Hacks Applied . | . . . Relay Couplers Released . | . . . Robots Rewired . | . . . Allies Hacked . | . . . Hacks Repelled . | . . . Allies | -11 -10 -10 -------- Run | Scr Mat Min Total Allies . | . . . Largest Group . | . . . Highest-Rated Group . | . . . Highest-Rated Ally . | . . . Total Orders . | . . . Ally Attacks . | . . . Total Damage . | . . . Kills . | . . . Allies Corrupted . | . . . Allies Melted . | . . . Intel | -11 -10 -10 ------- Run | Scr Mat Min Robot Analysis Total . | . . . Derelict Logs Recovered 1 | . . 1 Drone Launches . | . . . Drone Recoveries . | . . . Exploration | -11 -10 -10 ------------- Run | Scr Mat Min Turns Passed 758 | 2 638 118 Spaces Moved 347 | 2 320 25 Core . | . . . Treads 155 | . 130 25 Legs 2 | 2 . . Wheels 190 | . 190 . Hover . | . . . Flight . | . . . Fastest Speed 80 | 120 80 160 Average Speed 124 | 120 121 160 Slowest Speed 180 | 120 180 160 Overloaded Moves . | . . . Propulsion Burnouts . | . . . Robots Hopped . | . . . Cave-ins Triggered . | . . . Exploration Rate (%) 24 | 1 54 19 Regions Visited 2 Branch Regions 1 Pre-discovered Areas . | . . . Known Exits Taken . | . . . Unknown Exits Taken 2 | 1 1 . Scrap Searched . | . . . Spaces Dug 28 | . . 28 Terrain Destroyed 65 | . . 65 Melee . | . . . Projectile . | . . . AOE 65 | . . 65 Terrain Rammed . | . . . Walls Destroyed . | . . . Machines Disabled . | . . . Actions | -11 -10 -10 --------- Run | Scr Mat Min Total 522 | 1 451 70 Wait 29 | . 13 16 Move 345 | 1 319 25 Hop . | . . . Pick Up 23 | . 23 . Fast Attach 2 | . 2 . Attach 12 | . 8 4 Detach . | . . . Swap 7 | . 5 2 Drop 15 | . 15 . Fire 88 | . 65 23 Melee . | . . . Ram 1 | . 1 . Kick . | . . . Crush . | . . . Escape Stasis . | . . . Rewire . | . . . Trap . | . . . Miscellaneous . | . . . Route ------- -11/Scrapyard -10/Materials (discovered 2 exits: [*Mat] / [*Min]) -10/Mines History --------- Turn | Location | Event 1 | -11/Scrapyard | Discovered new exit (range 1) 3 | -11/Scrapyard | Entered Materials 275 | -10/Materials | Lost 3 parts (1n1u1w) 329 | -10/Materials | Build established: Mutant 455 | -10/Materials | Discovered new exit (range 14) 616 | -10/Materials | Discovered new exit (range 7) 641 | -10/Materials | Entered Mines 642 | -10/Mines | Assembled infested the area 651 | -10/Mines | Learned location of 1 exit from Materials 652 | -10/Mines | Met a Derelict bent on vengeance 696 | -10/Mines | Core integrity fell below 50% 724 | -10/Mines | Core integrity fell below 20% 747 | -10/Mines | Destroyed 12 combat bots 759 | -10/Mines | Destroyed by D-53 Grenadier with Mini Grenade Launcher Last Messages --------------- 00675_ as-22268 destroyed. 00675_ as-33015 destroyed. 00676_ Imp. Treads severed. 00680_ as-51193 sneak attacks. 00684_ as-10810 destroyed. 00684_ as-31739 destroyed. 00685_ Lgt. Armor Plating destroyed. 00686_ as-48426 destroyed. 00687_ The unstable cave ceiling collapses. 00688_ as-69361 destroyed. 00688_ as-52035 destroyed. 00688_ as-99470 destroyed. 00691_ Ion Engine destroyed. 00697_ Destroyed Asb. Hover Unit. 00697_ as-87417 destroyed. 00711_ as-97052 destroyed. 00725_ Imp. Treads destroyed. 00726_ as-84884 destroyed. 00730_ Acquired 20 matter. 00739_ as-34470 destroyed. Map ----- +----------------------------------------------------+ | ????????????????????????????????????????????????? | | ????????????????????????????????????????????????? | | ????????????????????????????????????????????????? | | ????????????????????????????????????????????????? | | ????????????????????????????????????????????????? | | ????????????????????????????????????????????????? | | ????????????????????????????????????????????????? | | ????????????????????????????????????????????????? | | ????????????????????????????????????????????????? | | ????????????????????????????????????????????????? | | ????????????????????????????????????????????????? | | ??????????????????#?????????????????????????????? | | ????????????????????????????????????????????????? | | ????????????????????#???????????????????????????? | | ??????????????????????? ?????? ?????????????????? | | ????????????????????????????????????????????????? | | ?????????????????????????? ?????????????????????? | | ??????????????????#??????#???????????##?????????? | | ????????????????????##?????????????? ##????????? | | ??????????????????????#???????????? ?????????? | | ?????????????????????#???????????? ??????????? | | ??????????????????#??#####?#?????? ???????????? | | ??????????????????#### ##?????? ????????????? | | ???????????#???????# ###?#? #??? ?????????? | | ??????????## ???#### #### #??????????????? | | ?????????## % @ d #?????? ??????? | | ??????????# ??#### d #?#????????????? | | ??????????# #????# ##??????????????? | | ?????????## #??#### ### #???????????????? | | ???????### ### ###???# #??#??????? ????? | | ??????## #???###%###???????????????? | | ?????## ### # #%#?????????????????? | | ?????# ## ##????????????????? | | ??# ### ###???????? ?????? | | ?# #?## ##????????? ???? | | ?? ### #?????????????? | | ?? ## = ##????????????? | | ??? ??# %=% #????????????? | | ??? ????# #???????????? | | ???# ""??????# ### ## #??????????? | | ?????"??????# ##?# ####?# ????????? | | ?????????????# ???### #?????? ????????? | | ?????????????# ????? ??????? ????????? | | ?????????????# ???? # ???????? ????????? | | ?????????????# ???# #####????????# ?????????? | | ?????????????# ??? ???????????????? ???????????? | | ?????????????# ?? ????????????????????????????? | | ?????????????# ?? ?????????????????????????????? | | ????????????????? ??????????????????????????????? | | ????????????????????????????????????????????????? | +----------------------------------------------------+ Best States ------------- Heat Dissipation 25 Energy Generation 10 Energy Capacity 250 Matter Stores 300 Matter Capacity 300 Sight Range 16 Terrain Scan Range 16 Terrain Scan Density 85 Armor Coverage 150 Evasion (%) 44 Recoil Reduction 2 Item Schematics ----------------- None Robot Schematics ------------------ None Fabricated ------------ Nothing Alien Tech Used ----------------- None Achievements -------------- None Challenges ------------ None Game ------ Seed SpectralDisruptorInjector Manual? 0 Play Time 00:08:07 Cumulative 55.2 hours Start 2021.10.11 @ 16:25:52 End 2021.10.11 @ 16:32:21 Sessions 1 Manual Loads 0 Difficulty Rogue Special Mode None Game No. 89 Rogue 89 Adventurer 0 Explorer 0 Win Type - Total 0 Types 0/0/0/0/0/0/0/0/0 Lore% 29 Gallery% 47 Achievement% 30 Wizard Run 0 Options --------- ASCII 0 Keyboard 0 Movement Mouse Keybinds 0 Fullscreen 1 Font 16/SmallcapsGlow Map View 76x50 Tactical HUD 1 Map Filters NONE Filters NONE Steam 1 RUN: 7b0f1b94-31dc-4f34-abd2-9bb37b0cb4f9